[Event "25th European Club Cup Women 2021"]
[Site "Struga"]
[Date "2021.09.18"]
[Round "1.3"]
[White "Maltsevskaya, Aleksandra"]
[Black "Dordzhieva, Dinara"]
[Result "1/2-1/2"]
[ECO "A13"]
[WhiteElo "2407"]
[BlackElo "2303"]
[Annotator "NA"]
[PlyCount "74"]
[EventDate "2021.09.18"]
[EventType "team-tourn"]
[EventCountry "MKD"]
[SourceTitle "playchess.com"]
[Source "ChessBase"]
[SourceQuality "1"]
[TimeControl "40/5400+30:1800+30"]

1. c4 {[%emt 0:00:03]} e6 {[%emt 0:01:22]} 2. g3 {[%emt 0:00:09]} Nf6 {[%emt 0:
00:12]} 3. Bg2 {[%emt 0:00:09]} d5 {[%emt 0:00:59]} 4. Nf3 {[%emt 1:32:09]}
dxc4 {[%emt 0:01:27]} 5. Qa4+ {[%emt 0:00:00]} Nbd7 {[%emt 0:00:11]} 6. Qxc4 {
[%emt 0:00:00]} a6 {[%emt 0:00:11]} 7. Qc2 {[%emt 0:01:30]} c5 {[%emt 0:00:41]}
8. Nc3 {[%emt 0:00:30]} Qc7 {[%emt 0:00:46]} 9. O-O {[%emt 0:00:30]} b6 {
[%emt 0:00:56]} 10. d4 {[%emt 0:00:00]} Bb7 {[%emt 0:02:15]} 11. Bf4 {[%emt 0:
00:00]} Bd6 {[%emt 0:00:14]} 12. Bxd6 {[%emt 0:00:00]} Qxd6 {[%emt 0:00:07]}
13. Rfd1 {[%emt 0:02:00]} O-O {[%emt 0:06:53]} 14. e4 {[%emt 0:00:30]} cxd4 {
[%emt 1:21:16]} 15. Nxd4 {[%emt 0:00:30]} Qc7 {[%emt 0:00:00]} 16. Rac1 Rad8 {
[%emt 0:01:00]} 17. f4 {[%emt 0:00:00]} e5 18. Nd5 {[%emt 0:01:30]} Qxc2 {
[%emt 0:01:00]} 19. Nxc2 {[%emt 0:00:30]} Nxd5 {[%emt 0:00:30]} 20. exd5 {
[%emt 0:00:30]} exf4 {[%emt 0:00:30]} 21. gxf4 {[%emt 0:00:00]} Nf6 22. Nb4 {
[%emt 0:00:00]} Rd6 23. Rc7 {[%emt 0:00:00]} Ba8 24. Rdc1 {[%emt 0:02:00]} Re8
{[%emt 0:02:00]} 25. Rc8 {[%emt 0:00:30]} Kf8 {[%emt 0:00:30]} 26. Rxe8+ {
[%emt 0:00:30]} Kxe8 {[%emt 0:00:00]} 27. Nxa6 {[%emt 0:00:00]} Bxd5 {[%emt 0:
00:00]} 28. Nc7+ {[%emt 0:01:00]} Ke7 {[%emt 0:01:30]} 29. Re1+ {[%emt 0:00:30]
} Kd7 {[%emt 0:00:00]} 30. Nb5 {[%emt 0:00:00]} Rc6 31. Rd1 {[%emt 0:00:00]}
Rc5 32. a4 {[%emt 0:00:32]} Kc6 33. Nd4+ {[%emt 0:01:28]} Kc7 {[%emt 0:02:30]}
34. Bf1 {[%emt 0:00:00]} Kb8 35. b4 {[%emt 0:01:00]} Rc7 {[%emt 0:01:00]} 36.
a5 {[%emt 0:00:30]} bxa5 {[%emt 0:00:00]} 37. bxa5 {[%emt 0:00:30]} Rc5 {
[%emt 0:01:00]} 1/2-1/2

[Event "25th European Club Cup Women 2021"]
[Site "Struga"]
[Date "2021.09.18"]
[Round "1.6"]
[White "Abdumalik, Zhansaya"]
[Black "Dzagnidze, Nana"]
[Result "1/2-1/2"]
[ECO "B31"]
[WhiteElo "2502"]
[BlackElo "2525"]
[Annotator "ChessBase"]
[PlyCount "68"]
[EventDate "2021.09.18"]
[EventType "team-tourn"]
[EventCountry "MKD"]
[SourceTitle "playchess.com"]
[Source "ChessBase"]
[SourceQuality "1"]
[TimeControl "40/5400+30:1800+30"]

1. e4 {[%emt 0:00:03]} c5 {[%emt 0:00:27]} 2. Nf3 {[%emt 0:00:37]} Nc6 {
[%emt 0:00:06]} 3. Bb5 {[%emt 0:00:34]} g6 {[%emt 0:00:37]} 4. Bxc6 {[%emt 0:
00:45]} dxc6 {[%emt 0:01:09]} 5. d3 {[%emt 0:00:06]} Qc7 {[%emt 0:01:40]} 6. h3
{[%emt 0:01:18]} e5 {[%emt 0:00:37]} 7. Be3 {[%emt 0:01:49]} Be6 {[%emt 0:02:
49]} 8. a4 {[%emt 0:02:33]} f6 {[%emt 0:02:52]} 9. Qd2 {[%emt 0:05:13]} a5 {
[%emt 0:12:45]} 10. Na3 {[%emt 0:02:35]} b6 {[%emt 0:02:50]} 11. b3 {[%emt 0:
02:58]} Ne7 {[%emt 0:04:36]} 12. Bh6 {[%emt 0:05:52]} O-O-O {[%emt 0:07:06]}
13. Bxf8 {[%emt 0:07:05]} Rhxf8 {[%emt 0:00:49]} 14. Qh6 {[%emt 0:01:05]} Ng8 {
[%emt 0:05:04]} 15. Qe3 {[%emt 0:01:38]} Ne7 {[%emt 0:02:41]} 16. Qh6 {[%emt 0:
06:05]} Ng8 {[%emt 0:00:41]} 17. Qe3 {[%emt 0:00:08]} Ne7 {[%emt 0:00:29]} 18.
O-O-O {[%emt 0:11:06]} Kb7 {[%emt 0:04:38]} 19. Kb2 {[%emt 0:00:33]} Nc8 {
[%emt 0:01:40]} 20. Rhe1 {[%emt 0:06:35]} g5 {[%emt 0:04:52]} 21. Nd2 {[%emt 0:
02:19]} Nd6 {[%emt 0:02:37]} 22. Ndc4 {[%emt 0:07:54]} Qg7 {[%emt 0:04:07]} 23.
Nxd6+ {[%emt 0:04:01]} Rxd6 {[%emt 0:00:06]} 24. Rd2 {[%emt 0:02:11]} h5 {
[%emt 0:04:40]} 25. Nc4 {[%emt 0:01:17]} Rd4 {[%emt 0:02:53]} 26. Red1 {
[%emt 0:02:50]} Rfd8 {[%emt 0:02:42]} 27. c3 {[%emt 0:02:48]} R4d7 {[%emt 0:00:
13]} 28. Kc2 {[%emt 0:00:54]} h4 {[%emt 0:08:40]} 29. f3 {[%emt 0:06:10]} Qf7 {
[%emt 0:01:11]} 30. Kb2 {[%emt 0:02:10]} Qg8 {[%emt 0:03:32]} 31. Qf2 {[%emt 0:
00:39]} Qf7 {[%emt 0:00:10]} 32. Qe3 {[%emt 0:00:08]} Qg8 {[%emt 0:00:09]} 33.
Qf2 {[%emt 0:00:19]} Qf7 {[%emt 0:00:14]} 34. Qe3 {[%emt 0:00:18]} Qg8 1/2-1/2

[Event "25th European Club Cup Women 2021"]
[Site "Struga"]
[Date "2021.09.18"]
[Round "1.7"]
[White "Cramling, Pia"]
[Black "Muzychuk, Mariya"]
[Result "1/2-1/2"]
[ECO "D30"]
[WhiteElo "2455"]
[BlackElo "2540"]
[Annotator "ChessBase"]
[PlyCount "65"]
[EventDate "2021.09.18"]
[EventType "team-tourn"]
[EventCountry "MKD"]
[SourceTitle "playchess.com"]
[Source "ChessBase"]
[SourceQuality "1"]
[TimeControl "40/5400+30:1800+30"]

1. Nf3 {[%emt 0:00:05]} d5 {[%emt 0:00:04]} 2. d4 {[%emt 0:00:32]} Nf6 {
[%emt 0:00:05]} 3. c4 {[%emt 0:00:10]} e6 {[%emt 0:00:15]} 4. Bg5 {[%emt 0:00:
55]} h6 {[%emt 0:02:46]} 5. Bxf6 {[%emt 0:01:11]} Qxf6 {[%emt 0:00:04]} 6. e3 {
[%emt 0:02:14]} Nd7 {[%emt 0:09:23]} 7. Qb3 {[%emt 0:06:58]} dxc4 {[%emt 0:07:
57]} 8. Bxc4 {[%emt 0:01:07]} c5 {[%emt 0:00:10]} 9. Nc3 {[%emt 0:12:38]} cxd4
{[%emt 0:02:05]} 10. exd4 {[%emt 0:00:08]} Bd6 {[%emt 0:02:46]} 11. O-O {
[%emt 0:03:02]} O-O {[%emt 0:01:18]} 12. Rfe1 {[%emt 0:06:29]} Nb6 {[%emt 0:02:
08]} 13. Bb5 {[%emt 0:01:35]} Rd8 {[%emt 0:04:37]} 14. a4 {[%emt 0:03:29]} Bc7
{[%emt 0:17:11]} 15. Rac1 {[%emt 0:02:06]} Bf4 {[%emt 0:10:34]} 16. Rcd1 {
[%emt 0:02:29]} a6 {[%emt 0:01:39]} 17. Bd3 {[%emt 0:04:09]} Nd5 {[%emt 0:04:
22]} 18. Nxd5 {[%emt 0:01:55]} exd5 {[%emt 0:00:39]} 19. Ne5 {[%emt 0:07:33]}
g6 {[%emt 0:04:31]} 20. g3 {[%emt 0:11:42]} Bxe5 {[%emt 0:01:15]} 21. dxe5 {
[%emt 0:00:34]} Qe7 {[%emt 0:02:49]} 22. Qb6 {[%emt 0:00:28]} Be6 {[%emt 0:02:
47]} 23. Qd4 {[%emt 0:02:24]} Rac8 {[%emt 0:01:37]} 24. Rc1 {[%emt 0:00:10]}
Qg5 {[%emt 0:01:59]} 25. f4 {[%emt 0:03:56]} Qg4 {[%emt 0:01:13]} 26. Qf2 {
[%emt 0:00:43]} h5 {[%emt 0:01:40]} 27. Rxc8 {[%emt 0:07:17]} Rxc8 {[%emt 0:01:
57]} 28. Qe3 {[%emt 0:02:17]} h4 {[%emt 0:02:43]} 29. Be2 {[%emt 0:00:20]} Qh3
{[%emt 0:00:52]} 30. Bf1 {[%emt 0:00:18]} Qg4 {[%emt 0:01:05]} 31. Be2 {
[%emt 0:00:12]} Qh3 {[%emt 0:00:22]} 32. Bf1 {[%emt 0:00:10]} Qg4 {[%emt 0:00:
04]} 33. Be2 1/2-1/2

[Event "25th European Club Cup Women 2021"]
[Site "Struga"]
[Date "2021.09.18"]
[Round "1.12"]
[White "Stojkovska, Monika"]
[Black "Vidic, Teja"]
[Result "0-1"]
[ECO "C54"]
[WhiteElo "2081"]
[BlackElo "2172"]
[Annotator "NA"]
[PlyCount "64"]
[EventDate "2021.09.18"]
[EventType "team-tourn"]
[EventCountry "MKD"]
[SourceTitle "playchess.com"]
[Source "ChessBase"]
[SourceQuality "1"]
[TimeControl "40/5400+30:1800+30"]

1. e4 {[%emt 0:00:03]} e5 {[%emt 0:00:11]} 2. Nf3 {[%emt 0:00:11]} Nc6 {
[%emt 0:00:07]} 3. Bc4 {[%emt 0:00:14]} Bc5 {[%emt 0:00:08]} 4. O-O {[%emt 0:
00:11]} Nf6 {[%emt 0:00:06]} 5. d3 {[%emt 0:00:14]} d6 {[%emt 0:00:22]} 6. c3 {
[%emt 0:00:16]} a6 {[%emt 0:00:21]} 7. a4 {[%emt 0:00:26]} Ba7 {[%emt 0:00:42]}
8. Re1 {[%emt 0:00:43]} h6 {[%emt 0:01:28]} 9. Nbd2 {[%emt 0:01:11]} O-O {
[%emt 0:00:09]} 10. h3 {[%emt 0:00:12]} Re8 {[%emt 0:00:11]} 11. b4 {[%emt 0:
01:19]} Be6 {[%emt 0:00:48]} 12. Bxe6 {[%emt 0:01:36]} Rxe6 {[%emt 0:02:59]}
13. Qc2 {[%emt 0:00:49]} Qd7 {[%emt 0:00:47]} 14. Nb3 {[%emt 0:01:00]} Ne7 {
[%emt 0:05:28]} 15. c4 {[%emt 0:15:16]} Ng6 {[%emt 0:02:47]} 16. Bb2 {[%emt 0:
14:53]} Nf4 {[%emt 0:04:24]} 17. d4 {[%emt 0:03:20]} N6h5 {[%emt 0:01:18]} 18.
Nh4 {[%emt 0:17:04]} Qd8 {[%emt 0:06:58]} 19. g3 {[%emt 0:11:49]} Nxh3+ {
[%emt 0:03:22]} 20. Kh2 {[%emt 0:00:16]} N3f4 {[%emt 0:01:50]} 21. c5 {[%emt 0:
05:00]} Qg5 {[%emt 0:05:37]} 22. Qd1 {[%emt 0:03:54]} Nf6 {[%emt 0:04:29]} 23.
Rh1 {[%emt 0:10:21]} Nxe4 {[%emt 0:06:10]} 24. Qf3 {[%emt 0:01:47]} f5 {
[%emt 0:11:25]} 25. dxe5 {[%emt 0:05:33]} dxe5 {[%emt 0:06:04]} 26. Bxe5 {
[%emt 0:00:25]} Nd5 {[%emt 0:04:35]} 27. Bb2 {[%emt 0:02:56]} f4 {[%emt 0:01:
32]} 28. Rae1 {[%emt 0:02:31]} fxg3+ {[%emt 0:06:32]} 29. fxg3 {[%emt 0:00:21]}
Rf8 {[%emt 0:00:23]} 30. Qg2 {[%emt 0:01:05]} Ne3 {[%emt 0:05:11]} 31. Qh3 {
[%emt 0:00:14]} Ng4+ {[%emt 0:02:22]} 32. Kg1 {[%emt 0:00:09]} Nxc5 {[%emt 0:
01:13]} 0-1

[Event "25th European Club Cup Women 2021"]
[Site "Struga"]
[Date "2021.09.18"]
[Round "1.13"]
[White "Salimova, Nurgyul"]
[Black "Peycheva, Gergana"]
[Result "1/2-1/2"]
[ECO "E04"]
[WhiteElo "2362"]
[BlackElo "2331"]
[Annotator "NA"]
[PlyCount "61"]
[EventDate "2021.09.18"]
[EventType "team-tourn"]
[EventCountry "MKD"]
[SourceTitle "playchess.com"]
[Source "ChessBase"]
[SourceQuality "1"]
[TimeControl "40/5400+30:1800+30"]

1. d4 {[%emt 0:00:04]} d5 {[%emt 0:00:14]} 2. Nf3 {[%emt 0:00:09]} Nf6 {
[%emt 0:00:48]} 3. c4 {[%emt 0:00:16]} e6 {[%emt 0:00:50]} 4. g3 {[%emt 0:00:
15]} dxc4 {[%emt 0:01:10]} 5. Bg2 {[%emt 0:00:19]} c5 {[%emt 0:01:04]} 6. O-O {
[%emt 1:32:27]} Nc6 {[%emt 0:00:23]} 7. dxc5 {[%emt 0:00:30]} Qxd1 {[%emt 1:29:
31]} 8. Rxd1 {[%emt 0:00:00]} Bxc5 9. Nbd2 {[%emt 0:01:00]} c3 {[%emt 0:01:00]}
10. bxc3 {[%emt 0:00:30]} O-O {[%emt 0:00:30]} 11. Nb3 {[%emt 0:00:00]} Be7 12.
Nfd4 {[%emt 0:01:00]} Nxd4 {[%emt 0:01:00]} 13. cxd4 {[%emt 0:00:30]} Nd5 {
[%emt 0:00:30]} 14. Bf4 {[%emt 0:00:00]} Bd7 15. Nc5 {[%emt 0:01:00]} Bc6 {
[%emt 0:01:00]} 16. Rac1 {[%emt 0:00:30]} Nxf4 {[%emt 0:00:30]} 17. gxf4 {
[%emt 0:00:30]} Bxg2 {[%emt 0:00:30]} 18. Kxg2 {[%emt 0:00:30]} b6 {[%emt 0:00:
30]} 19. Nd7 {[%emt 0:00:30]} Rfc8 {[%emt 0:00:30]} 20. Ne5 {[%emt 0:00:30]}
Ba3 {[%emt 0:00:30]} 21. Rxc8+ {[%emt 0:00:30]} Rxc8 {[%emt 0:00:30]} 22. Rd3 {
[%emt 0:00:30]} Bd6 {[%emt 0:00:30]} 23. d5 {[%emt 0:00:30]} Bxe5 {[%emt 0:00:
30]} 24. fxe5 {[%emt 0:00:30]} exd5 {[%emt 0:00:30]} 25. Rxd5 {[%emt 0:00:30]}
Kf8 {[%emt 0:00:30]} 26. Rd7 {[%emt 0:00:30]} Rc2 {[%emt 0:00:30]} 27. Rxa7 {
[%emt 0:00:30]} Rxe2 {[%emt 0:00:30]} 28. Rb7 {[%emt 0:00:30]} Rxa2 {[%emt 0:
00:30]} 29. Rxb6 {[%emt 0:00:00]} Re2 {[%emt 0:00:00]} 30. Rb5 Ke7 {[%emt 0:01:
00]} 31. Kf3 {[%emt 0:00:00]} 1/2-1/2

[Event "25th European Club Cup Women 2021"]
[Site "Struga"]
[Date "2021.09.18"]
[Round "1.15"]
[White "Krasteva, Beloslava"]
[Black "Djukic, Sandra"]
[Result "1/2-1/2"]
[ECO "D31"]
[WhiteElo "2217"]
[BlackElo "2127"]
[Annotator "NA"]
[PlyCount "80"]
[EventDate "2021.09.18"]
[EventType "team-tourn"]
[EventCountry "MKD"]
[SourceTitle "playchess.com"]
[Source "ChessBase"]
[SourceQuality "1"]
[TimeControl "40/5400+30:1800+30"]

1. c4 {[%emt 0:00:07]} e6 {[%emt 0:00:47]} 2. d4 {[%emt 0:00:27]} d5 {[%emt 0:
00:06]} 3. Nc3 {[%emt 0:00:39]} a6 {[%emt 0:00:05]} 4. cxd5 {[%emt 0:00:45]}
exd5 {[%emt 0:00:08]} 5. Nf3 {[%emt 0:00:16]} h6 {[%emt 0:00:14]} 6. Bf4 {
[%emt 0:01:03]} Nf6 {[%emt 0:00:08]} 7. e3 {[%emt 0:00:56]} Bd6 {[%emt 0:00:09]
} 8. Be5 {[%emt 0:00:35]} c6 {[%emt 0:00:42]} 9. Bd3 {[%emt 0:01:45]} Qe7 {
[%emt 0:01:12]} 10. h3 {[%emt 0:07:12]} Nbd7 {[%emt 0:03:05]} 11. Bxd6 {
[%emt 0:00:37]} Qxd6 {[%emt 0:00:06]} 12. O-O {[%emt 0:00:48]} O-O {[%emt 0:02:
31]} 13. Qc2 {[%emt 0:03:21]} Re8 {[%emt 0:05:00]} 14. Rab1 {[%emt 0:03:40]}
Qe7 {[%emt 0:00:48]} 15. b4 {[%emt 0:17:56]} Ne4 {[%emt 0:53:37]} 16. a4 {
[%emt 0:02:35]} Nb6 {[%emt 0:10:45]} 17. Rb3 {[%emt 0:16:18]} Be6 {[%emt 0:04:
28]} 18. b5 {[%emt 0:13:26]} axb5 {[%emt 0:00:22]} 19. axb5 {[%emt 0:00:13]} c5
{[%emt 0:01:26]} 20. dxc5 {[%emt 0:04:45]} Nxc5 {[%emt 0:02:03]} 21. Rbb1 {
[%emt 0:00:39]} Rec8 {[%emt 0:02:05]} 22. Nd1 {[%emt 0:10:57]} Ra3 {[%emt 0:10:
03]} 23. Be2 {[%emt 0:00:57]} Ne4 {[%emt 0:00:18]} 24. Qb2 {[%emt 0:01:12]} Nc4
{[%emt 0:01:30]} 25. Qd4 {[%emt 0:02:59]} Ned6 {[%emt 0:00:38]} 26. Bxc4 {
[%emt 0:03:16]} dxc4 {[%emt 0:00:40]} 27. Nc3 {[%emt 0:01:24]} Nf5 {[%emt 0:00:
18]} 28. Qd2 {[%emt 0:00:28]} Rd8 {[%emt 0:00:17]} 29. Nd4 {[%emt 0:02:01]}
Nxd4 {[%emt 0:00:46]} 30. exd4 {[%emt 0:00:05]} Bf5 {[%emt 0:00:23]} 31. Ra1 {
[%emt 0:01:30]} Rxa1 {[%emt 0:00:45]} 32. Rxa1 {[%emt 0:00:05]} Bd3 {[%emt 0:
00:29]} 33. d5 {[%emt 0:00:50]} Re8 {[%emt 0:00:34]} 34. Rc1 {[%emt 0:00:49]}
Qe5 {[%emt 0:00:17]} 35. f4 {[%emt 0:01:28]} Qd4+ {[%emt 0:00:04]} 36. Qf2 {
[%emt 0:00:13]} Qf6 {[%emt 0:00:22]} 37. Qf3 {[%emt 0:01:36]} Qd4+ {[%emt 0:00:
54]} 38. Qf2 {[%emt 0:00:03]} Qf6 {[%emt 0:00:01]} 39. Qf3 {[%emt 0:00:12]}
Qd4+ {[%emt 0:00:01]} 40. Qf2 {[%emt 0:00:00]} Qf6 {[%emt 0:00:00]} 1/2-1/2

[Event "25th European Club Cup Women 2021"]
[Site "Struga"]
[Date "2021.09.19"]
[Round "2.1"]
[White "Bivol, Alina"]
[Black "Peycheva, Gergana"]
[Result "1-0"]
[ECO "B13"]
[WhiteElo "2385"]
[BlackElo "2331"]
[Annotator "ChessBase"]
[PlyCount "160"]
[EventDate "2021.09.18"]
[EventType "team-tourn"]
[EventCountry "MKD"]
[SourceTitle "playchess.com"]
[Source "ChessBase"]
[SourceQuality "1"]
[TimeControl "40/5400+30:1800+30"]

1. e4 {[%emt 0:00:11]} c6 {[%emt 0:00:23]} 2. d4 {[%emt 0:01:25]} d5 {[%emt 0:
00:35]} 3. exd5 {[%emt 0:00:05]} cxd5 {[%emt 0:00:05]} 4. Bd3 {[%emt 0:00:04]}
Nc6 {[%emt 0:00:58]} 5. c3 {[%emt 0:00:24]} Qc7 {[%emt 0:00:52]} 6. Ne2 {
[%emt 0:00:11]} Bg4 {[%emt 0:00:57]} 7. O-O {[%emt 0:00:08]} e6 {[%emt 0:04:27]
} 8. Qe1 {[%emt 0:01:34]} Bd6 {[%emt 0:04:14]} 9. f3 {[%emt 0:02:40]} Bh5 {
[%emt 0:02:08]} 10. Qh4 {[%emt 0:00:41]} Bg6 {[%emt 0:00:18]} 11. Bxg6 {
[%emt 0:00:13]} fxg6 {[%emt 0:00:03]} 12. Re1 {[%emt 0:09:11]} Kf7 {[%emt 0:06:
38]} 13. Bf4 {[%emt 0:06:27]} e5 {[%emt 0:06:14]} 14. dxe5 {[%emt 0:01:26]}
Nxe5 {[%emt 0:01:12]} 15. Bxe5 {[%emt 0:08:37]} Bxe5 {[%emt 0:00:15]} 16. Nd2 {
[%emt 0:00:15]} Nf6 {[%emt 0:06:13]} 17. f4 {[%emt 0:03:59]} Bd6 {[%emt 0:01:
36]} 18. Nf3 {[%emt 0:00:15]} Rhe8 {[%emt 0:05:58]} 19. Ng5+ {[%emt 0:02:29]}
Kg8 {[%emt 0:01:50]} 20. Nd4 {[%emt 0:01:28]} Bc5 {[%emt 0:03:32]} 21. Nge6 {
[%emt 0:10:00]} Bxd4+ {[%emt 0:02:43]} 22. Nxd4 {[%emt 0:00:16]} Re4 {[%emt 0:
05:52]} 23. Rxe4 {[%emt 0:00:25]} dxe4 {[%emt 0:00:11]} 24. Re1 {[%emt 0:06:03]
} Re8 {[%emt 0:04:37]} 25. Qg5 {[%emt 0:00:23]} a6 {[%emt 0:06:11]} 26. h3 {
[%emt 0:02:32]} Kh8 {[%emt 0:07:37]} 27. Re2 {[%emt 0:04:58]} Nh5 {[%emt 0:05:
14]} 28. g3 {[%emt 0:05:47]} Nf6 {[%emt 0:03:10]} 29. Kg2 {[%emt 0:01:22]} b6 {
[%emt 0:02:42]} 30. f5 {[%emt 0:01:29]} Re5 {[%emt 0:02:00]} 31. g4 {[%emt 0:
06:54]} gxf5 {[%emt 0:02:41]} 32. gxf5 {[%emt 0:01:50]} Qc4 {[%emt 0:01:28]}
33. Kh2 {[%emt 0:04:02]} h6 {[%emt 0:00:26]} 34. Qf4 {[%emt 0:03:43]} Re7 {
[%emt 0:03:03]} 35. Rg2 {[%emt 0:02:38]} Qc7 {[%emt 0:05:42]} 36. Qxc7 {
[%emt 0:05:11]} Rxc7 {[%emt 0:00:04]} 37. Kg1 {[%emt 0:00:31]} Kg8 {[%emt 0:01:
34]} 38. Kf2 {[%emt 0:01:30]} Re7 {[%emt 0:01:22]} 39. Ne6 {[%emt 0:00:24]} g5
{[%emt 0:03:25]} 40. h4 {[%emt 0:00:00]} g4 {[%emt 0:00:00]} 41. Ke3 {[%emt 0:
06:52]} Rd7 {[%emt 0:03:49]} 42. Nd4 {[%emt 0:01:00]} Kf7 {[%emt 0:03:39]} 43.
c4 {[%emt 0:00:11]} Rc7 {[%emt 0:03:47]} 44. b3 {[%emt 0:00:23]} Rd7 {[%emt 0:
01:18]} 45. Rc2 {[%emt 0:01:42]} Rc7 {[%emt 0:01:03]} 46. a3 {[%emt 0:07:09]}
Rc8 {[%emt 0:02:05]} 47. Ne6 {[%emt 0:02:41]} Ke7 {[%emt 0:03:38]} 48. b4 {
[%emt 0:03:17]} Kd6 {[%emt 0:03:34]} 49. Kf4 {[%emt 0:01:20]} Rg8 {[%emt 0:01:
49]} 50. Rd2+ {[%emt 0:03:01]} Ke7 {[%emt 0:01:25]} 51. Nd4 {[%emt 0:03:40]}
Rc8 {[%emt 0:02:28]} 52. b5 {[%emt 0:00:33]} axb5 {[%emt 0:01:09]} 53. cxb5 {
[%emt 0:00:08]} Rc3 {[%emt 0:01:49]} 54. Nc6+ {[%emt 0:00:42]} Kf7 {[%emt 0:00:
52]} 55. Ne5+ {[%emt 0:03:18]} Ke7 {[%emt 0:00:05]} 56. Ng6+ {[%emt 0:01:56]}
Kf7 {[%emt 0:00:27]} 57. Ne5+ {[%emt 0:01:18]} Ke7 {[%emt 0:00:04]} 58. a4 {
[%emt 0:01:14]} e3 {[%emt 0:02:04]} 59. Ng6+ {[%emt 0:02:18]} Kf7 {[%emt 0:00:
04]} 60. Ne5+ {[%emt 0:00:40]} Ke7 {[%emt 0:00:04]} 61. Rb2 {[%emt 0:00:54]}
Kd6 {[%emt 0:03:51]} 62. a5 {[%emt 0:01:13]} Nd5+ {[%emt 0:00:53]} 63. Ke4 {
[%emt 0:00:32]} bxa5 {[%emt 0:01:16]} 64. Kd4 {[%emt 0:00:47]} g3 {[%emt 0:02:
07]} 65. b6 {[%emt 0:03:24]} Rc8 {[%emt 0:00:13]} 66. b7 {[%emt 0:00:32]} Rb8 {
[%emt 0:00:03]} 67. Nc4+ {[%emt 0:00:04]} Kc6 {[%emt 0:00:03]} 68. Nxa5+ {
[%emt 0:00:05]} Kd6 {[%emt 0:00:06]} 69. Nc4+ {[%emt 0:00:21]} Kc6 {[%emt 0:00:
04]} 70. Na5+ {[%emt 0:00:39]} Kd6 {[%emt 0:00:03]} 71. Rc2 {[%emt 0:00:59]}
Nb4 {[%emt 0:02:39]} 72. Rc8 {[%emt 0:00:45]} e2 {[%emt 0:00:12]} 73. Rxb8 {
[%emt 0:00:59]} Na6 {[%emt 0:01:07]} 74. Ra8 {[%emt 0:00:29]} e1=Q {[%emt 0:00:
36]} 75. Rxa6+ {[%emt 0:00:04]} Kd7 {[%emt 0:00:33]} 76. b8=Q {[%emt 0:00:18]}
Qd2+ {[%emt 0:00:27]} 77. Kc5 {[%emt 0:00:56]} Qe3+ {[%emt 0:00:26]} 78. Kb4 {
[%emt 0:00:17]} Qd2+ {[%emt 0:00:26]} 79. Ka3 {[%emt 0:00:46]} Qd3+ {[%emt 0:
00:37]} 80. Ka4 {[%emt 0:00:14]} Qc4+ {[%emt 0:01:05]} 1-0

[Event "25th European Club Cup Women 2021"]
[Site "Struga"]
[Date "2021.09.19"]
[Round "2.2"]
[White "Toncheva, Nadya"]
[Black "Heinemann, Josefine"]
[Result "1/2-1/2"]
[ECO "D85"]
[WhiteElo "2178"]
[BlackElo "2292"]
[Annotator "NA"]
[PlyCount "109"]
[EventDate "2021.09.18"]
[EventType "team-tourn"]
[EventCountry "MKD"]
[SourceTitle "playchess.com"]
[Source "ChessBase"]
[SourceQuality "1"]
[TimeControl "40/5400+30:1800+30"]

1. d4 {[%emt 0:00:02]} Nf6 {[%emt 0:00:07]} 2. c4 {[%emt 0:00:04]} g6 {[%emt 0:
00:06]} 3. Nc3 {[%emt 0:00:03]} d5 {[%emt 0:00:04]} 4. cxd5 {[%emt 0:00:03]}
Nxd5 {[%emt 0:00:06]} 5. e4 {[%emt 0:00:03]} Nxc3 {[%emt 0:00:07]} 6. bxc3 {
[%emt 0:00:03]} Bg7 {[%emt 0:00:08]} 7. Be3 {[%emt 0:00:06]} c5 {[%emt 0:00:06]
} 8. Rc1 {[%emt 0:00:05]} Qa5 {[%emt 0:00:25]} 9. Qd2 {[%emt 0:00:04]} O-O {
[%emt 0:00:18]} 10. Nf3 {[%emt 0:00:03]} Nd7 {[%emt 0:00:06]} 11. Bh6 {[%emt 0:
00:12]} Nf6 {[%emt 0:03:22]} 12. Bd3 {[%emt 0:00:05]} Bg4 {[%emt 0:06:51]} 13.
Bxg7 {[%emt 0:00:31]} Kxg7 {[%emt 0:00:06]} 14. Ne5 {[%emt 0:00:09]} cxd4 {
[%emt 0:03:53]} 15. cxd4 {[%emt 0:00:07]} Qxd2+ {[%emt 0:04:07]} 16. Kxd2 {
[%emt 0:00:05]} Rac8 {[%emt 0:03:20]} 17. Ke3 {[%emt 0:05:08]} Be6 {[%emt 0:03:
17]} 18. d5 {[%emt 0:01:41]} Ng4+ {[%emt 0:01:50]} 19. Nxg4 {[%emt 0:02:55]}
Bxg4 {[%emt 0:00:05]} 20. Kd4 {[%emt 0:01:48]} Bd7 {[%emt 0:04:03]} 21. f4 {
[%emt 0:10:04]} Rfd8 {[%emt 0:05:27]} 22. Rxc8 {[%emt 0:12:28]} Rxc8 {[%emt 0:
00:09]} 23. Rb1 {[%emt 0:00:00]} b6 {[%emt 0:07:13]} 24. Rb2 {[%emt 0:09:05]}
f6 {[%emt 0:06:32]} 25. e5 {[%emt 0:03:03]} Kf8 {[%emt 0:08:08]} 26. h4 {
[%emt 0:06:41]} Rd8 {[%emt 0:04:43]} 27. Be4 {[%emt 0:13:44]} Be6 {[%emt 0:05:
59]} 28. exf6 {[%emt 0:00:10]} exf6 {[%emt 0:00:51]} 29. Rc2 {[%emt 0:00:06]}
Ke7 {[%emt 0:02:02]} 30. Bf3 {[%emt 0:03:30]} Bf5 {[%emt 0:04:28]} 31. Rc7+ {
[%emt 0:03:23]} Rd7 {[%emt 0:00:13]} 32. Rc3 {[%emt 0:00:03]} h5 {[%emt 0:04:
51]} 33. Bd1 {[%emt 0:06:50]} Rd8 {[%emt 0:03:01]} 34. Ba4 {[%emt 0:06:50]} Rc8
{[%emt 0:00:21]} 35. Bc6 {[%emt 0:00:04]} Kd6 {[%emt 0:01:41]} 36. Re3 {
[%emt 0:05:12]} Rg8 {[%emt 0:04:15]} 37. Kc4 {[%emt 0:02:42]} Rc8 {[%emt 0:03:
05]} 38. Kb5 {[%emt 0:00:45]} Bd7 {[%emt 0:01:22]} 39. Rd3 {[%emt 0:04:19]} Re8
{[%emt 0:00:49]} 40. Bxd7 {[%emt 0:00:00]} Kxd7 {[%emt 0:00:00]} 41. Ra3 {
[%emt 0:02:34]} Kd6 {[%emt 0:03:34]} 42. Rxa7 {[%emt 0:05:10]} Re2 {[%emt 0:00:
59]} 43. g3 {[%emt 0:10:55]} Re3 {[%emt 0:04:57]} 44. Rf7 {[%emt 0:02:44]} Rxg3
{[%emt 0:01:00]} 45. Rxf6+ {[%emt 0:00:07]} Kxd5 {[%emt 0:00:06]} 46. Rxb6 {
[%emt 0:03:56]} Ke4 {[%emt 0:01:41]} 47. a4 {[%emt 0:00:39]} Kxf4 {[%emt 0:00:
33]} 48. a5 {[%emt 0:00:17]} g5 {[%emt 0:03:41]} 49. a6 {[%emt 0:02:35]} Ra3 {
[%emt 0:02:56]} 50. hxg5 {[%emt 0:01:39]} Kxg5 {[%emt 0:00:04]} 51. Rd6 {
[%emt 0:00:49]} h4 {[%emt 0:00:32]} 52. Rd5+ {[%emt 0:00:05]} Kg4 {[%emt 0:00:
16]} 53. Kb6 {[%emt 0:00:41]} h3 {[%emt 0:00:31]} 54. a7 {[%emt 0:00:31]} Rxa7
{[%emt 0:00:16]} 55. Kxa7 {[%emt 0:00:06]} 1/2-1/2